[Event "World Team-ch Women 2019"]
[Site "Astana"]
[Date "2019.03.07"]
[Round "3.16"]
[White "Melia, Salome"]
[Black "Wu, Rochelle"]
[Result "1-0"]
[ECO "B94"]
[WhiteElo "2385"]
[BlackElo "2120"]
[Annotator "NA"]
[PlyCount "73"]
[EventDate "2019.02.05"]
[EventType "team-tourn"]
[EventCountry "KAZ"]
[SourceTitle "playchess.com"]
[Source "ChessBase"]
[SourceQuality "1"]
[WhiteTeam "Georgia"]
[BlackTeam "United States"]
[WhiteTeamCountry "GEO"]
[BlackTeamCountry "USA"]
[TimeControl "40/5400+30:1800+30"]

1. e4 {[%emt 0:00:00]} c5 {[%emt 0:00:00]} 2. Nf3 {[%emt 0:00:00]} d6 {[%emt 0:00:03]} 3. d4 {[%emt 0:00:00]} cxd4 {[%emt 0:00:19]} 4. Nxd4 {[%emt 0:00:00]} Nf6 {[%emt 0:00:47]} 5. Nc3 {[%emt 0:00:03]} a6 {[%emt 0:02:48]} 6. Bg5 {[%emt 0:01:16]} Nbd7 {[%emt 0:00:32]} 7. Qe2 {[%emt 0:00:25]} Qc7 {[%emt 0:02:45]} 8. O-O-O {[%emt 0:00:54]} b5 {[%emt 0:03:20]} 9. Bxf6 {[%emt 0:02:28]} gxf6 {[%emt 0:05:07]} 10. Nd5 {[%emt 0:00:58]} Qb7 {[%emt 0:04:18]} 11. Qh5 {[%emt 0:13:02]} Nc5 $18 {[%emt 0:13:26]} 12. Re1 Ne6 {[%emt 0:09:37]} 13. Nf5 {[%emt 0:18:18]} Ng7 {[%emt 0:02:06]} 14. Qf3 {[%emt 0:04:35]} Be6 {[%emt 0:06:52]} 15. Ndxe7 {[%emt 0:05:09]} Nxf5 {[%emt 0:04:00]} 16. Nxf5 {[%emt 0:00:11]} Rc8 {[%emt 0:08:59]} 17. Kb1 {[%emt 0:08:17]} Qc7 {[%emt 0:01:54]} 18. c3 {[%emt 0:01:02]} Qc5 {[%emt 0:10:04]} 19. Bd3 {[%emt 0:03:46]} Rb8 {[%emt 0:05:48]} 20. Ne3 {[%emt 0:11:39]} Qe5 {[%emt 0:03:24]} 21. Nd5 {[%emt 0:01:57]} Be7 {[%emt 0:00:25]} 22. Qg3 {[%emt 0:07:30]} Qxg3 {[%emt 0:02:31]} 23. hxg3 {[%emt 0:00:20]} Bxd5 {[%emt 0:01:45]} 24. exd5 {[%emt 0:00:02]} h6 {[%emt 0:00:16]} 25. Rh4 {[%emt 0:01:00]} Rb7 {[%emt 0:00:15]} 26. a4 {[%emt 0:01:26]} Kd7 {[%emt 0:01:03]} 27. axb5 {[%emt 0:05:33]} axb5 {[%emt 0:00:09]} 28. Rb4 {[%emt 0:00:47]} Rhb8 {[%emt 0:00:17]} 29. Bf5+ {[%emt 0:00:07]} Kd8 {[%emt 0:00:13]} 30. Rg4 {[%emt 0:00:42]} Bf8 {[%emt 0:00:30]} 31. Rb4 {[%emt 0:05:57]} Kc7 {[%emt 0:01:39]} 32. Bd3 {[%emt 0:02:05]} Kd8 {[%emt 0:01:15]} 33. Kc2 {[%emt 0:00:28]} Kd7 {[%emt 0:01:31]} 34. Ra1 {[%emt 0:01:35]} Be7 {[%emt 0:00:49]} 35. Ra5 {[%emt 0:01:34]} Bd8 {[%emt 0:00:43]} 36. Raxb5 {[%emt 0:00:15]} Rxb5 {[%emt 0:00:08]} 37. Bxb5+ {[%emt 0:00:54]} 1-0

[Event "World Team-ch Women 2019"]
[Site "Astana"]
[Date "2019.03.07"]
[Round "3.17"]
[White "Karavade, Eesha"]
[Black "Danielian, Elina"]
[Result "1/2-1/2"]
[ECO "C08"]
[WhiteElo "2357"]
[BlackElo "2402"]
[Annotator "NA"]
[PlyCount "92"]
[EventDate "2019.02.05"]
[EventType "team-tourn"]
[EventCountry "KAZ"]
[SourceTitle "playchess.com"]
[Source "ChessBase"]
[SourceQuality "1"]
[WhiteTeam "India"]
[BlackTeam "Armenia"]
[WhiteTeamCountry "IND"]
[BlackTeamCountry "ARM"]
[TimeControl "40/5400+30:1800+30"]

1. e4 {[%emt 0:00:00]} e6 {[%emt 0:00:37]} 2. d4 {[%emt 0:00:05]} d5 {[%emt 0:00:04]} 3. Nd2 {[%emt 0:00:06]} c5 {[%emt 0:01:07]} 4. exd5 {[%emt 0:00:35]} exd5 {[%emt 0:00:04]} 5. Ngf3 {[%emt 0:00:06]} Nf6 {[%emt 0:00:14]} 6. Bb5+ {[%emt 0:00:23]} Bd7 {[%emt 0:00:05]} 7. Bxd7+ {[%emt 0:00:14]} Nbxd7 {[%emt 0:00:09]} 8. O-O {[%emt 0:00:10]} Be7 {[%emt 0:00:02]} 9. dxc5 {[%emt 0:00:14]} Nxc5 {[%emt 0:00:04]} 10. Nb3 {[%emt 0:01:04]} Nce4 {[%emt 0:00:57]} 11. Nfd4 {[%emt 0:00:14]} Qd7 {[%emt 0:01:32]} 12. f3 {[%emt 0:00:30]} Nd6 {[%emt 0:00:04]} 13. Nc5 {[%emt 0:00:07]} Qc8 {[%emt 0:00:03]} 14. Nd3 {[%emt 0:00:08]} O-O {[%emt 0:00:05]} 15. Re1 {[%emt 0:00:28]} Re8 {[%emt 0:06:39]} 16. Bg5 {[%emt 0:09:24]} Qc7 {[%emt 0:11:10]} 17. c3 {[%emt 0:02:14]} Nc4 {[%emt 0:05:49]} 18. Nf5 Bd8 {[%emt 0:15:51]} 19. Qa4 {[%emt 0:32:01]} Re6 {[%emt 0:13:30]} 20. Nd4 {[%emt 0:05:39]} Rxe1+ {[%emt 0:05:28]} 21. Rxe1 {[%emt 0:00:03]} h6 {[%emt 0:01:38]} 22. Bf4 {[%emt 0:00:42]} Qc8 {[%emt 0:05:12]} 23. b3 {[%emt 0:06:03]} Na5 {[%emt 0:22:34]} 24. Bd2 {[%emt 0:04:08]} Bb6 {[%emt 0:01:15]} 25. Kh1 {[%emt 0:00:10]} Nc6 {[%emt 0:02:24]} 26. Nxc6 {[%emt 0:03:48]} bxc6 {[%emt 0:02:52]} 27. Ne5 {[%emt 0:03:25]} c5 {[%emt 0:01:24]} 28. c4 {[%emt 0:01:06]} d4 {[%emt 0:02:04]} 29. Qc6 {[%emt 0:00:18]} Qxc6 {[%emt 0:00:33]} 30. Nxc6 {[%emt 0:00:03]} Kf8 {[%emt 0:00:51]} 31. Kg1 {[%emt 0:00:18]} Rc8 {[%emt 0:00:13]} 32. Ne5 {[%emt 0:00:06]} Bc7 {[%emt 0:00:39]} 33. Nd3 {[%emt 0:00:33]} Bd6 {[%emt 0:00:04]} 34. Kf2 {[%emt 0:03:57]} Rc6 {[%emt 0:00:44]} 35. Re2 {[%emt 0:01:29]} Nd7 {[%emt 0:00:32]} 36. h3 {[%emt 0:01:45]} h5 {[%emt 0:00:20]} 37. g4 {[%emt 0:00:27]} hxg4 {[%emt 0:00:26]} 38. hxg4 {[%emt 0:00:20]} f6 {[%emt 0:00:25]} 39. f4 {[%emt 0:00:55]} Kf7 {[%emt 0:00:33]} 40. Kf3 {[%emt 0:00:00]} Rc8 {[%emt 0:00:00]} 41. Be1 {[%emt 0:05:27]} Rh8 {[%emt 0:02:49]} 42. Kg2 {[%emt 0:03:46]} g5 {[%emt 0:09:36]} 43. fxg5 {[%emt 0:03:41]} Rh2+ {[%emt 0:03:12]} 44. Kf1 {[%emt 0:00:01]} Rh1+ {[%emt 0:00:11]} 45. Kg2 {[%emt 0:00:02]} Rh2+ {[%emt 0:00:04]} 46. Kf1 {[%emt 0:00:08]} Rh1+ {[%emt 0:09:41]} 1/2-1/2

[Event "World Team-ch Women 2019"]
[Site "Astana"]
[Date "2019.03.07"]
[Round "3.18"]
[White "Mkrtchian, Lilit"]
[Black "Soumya, Swaminathan"]
[Result "1-0"]
[ECO "D71"]
[WhiteElo "2390"]
[BlackElo "2401"]
[Annotator "ChessBase"]
[PlyCount "105"]
[EventDate "2019.02.05"]
[EventType "team-tourn"]
[EventCountry "KAZ"]
[SourceTitle "playchess.com"]
[Source "ChessBase"]
[SourceQuality "1"]
[WhiteTeam "Armenia"]
[BlackTeam "India"]
[WhiteTeamCountry "ARM"]
[BlackTeamCountry "IND"]
[TimeControl "40/5400+30:1800+30"]

1. d4 {[%emt 0:00:00]} Nf6 {[%emt 0:00:00]} 2. c4 {[%emt 0:00:04]} g6 {[%emt 0:00:27]} 3. g3 {[%emt 0:00:32]} Bg7 {[%emt 0:05:16]} 4. Bg2 {[%emt 0:00:07]} c5 {[%emt 0:00:07]} 5. Nf3 {[%emt 0:05:05]} O-O {[%emt 0:06:42]} 6. Nc3 {[%emt 0:07:39]} cxd4 {[%emt 0:03:04]} 7. Nxd4 {[%emt 0:00:14]} Nc6 {[%emt 0:00:10]} 8. O-O {[%emt 0:00:19]} Nxd4 {[%emt 0:00:48]} 9. Qxd4 {[%emt 0:00:05]} d6 {[%emt 0:00:02]} 10. Qd3 {[%emt 0:03:23]} a6 {[%emt 0:02:46]} 11. Bg5 {[%emt 0:03:58]} Rb8 {[%emt 0:05:02]} 12. a4 Be6 {[%emt 0:07:16]} 13. b3 {[%emt 0:15:46]} Re8 {[%emt 0:12:11]} 14. Rac1 {[%emt 0:07:17]} Qa5 {[%emt 0:07:00]} 15. Qd2 {[%emt 0:03:10]} Qb4 {[%emt 0:01:51]} 16. Qc2 {[%emt 0:09:29]} Rec8 {[%emt 0:04:41]} 17. Bd2 {[%emt 0:07:44]} Qc5 {[%emt 0:00:04]} 18. Qd1 {[%emt 0:14:57]} Qh5 {[%emt 0:12:52]} 19. e4 {[%emt 0:00:25]} Qxd1 {[%emt 0:08:36]} 20. Rfxd1 {[%emt 0:00:03]} Nd7 {[%emt 0:01:03]} 21. Nd5 {[%emt 0:09:16]} Bxd5 {[%emt 0:00:08]} 22. cxd5 {[%emt 0:05:40]} Nc5 {[%emt 0:01:11]} 23. Rb1 {[%emt 0:00:10]} b5 {[%emt 0:02:22]} 24. axb5 {[%emt 0:00:10]} axb5 {[%emt 0:06:18]} 25. Rdc1 {[%emt 0:00:34]} Nd3 {[%emt 0:02:34]} 26. Rxc8+ {[%emt 0:00:43]} Rxc8 {[%emt 0:00:02]} 27. Bf1 {[%emt 0:00:37]} Ne5 {[%emt 0:07:10]} 28. Rc1 {[%emt 0:05:53]} Rxc1 {[%emt 0:00:06]} 29. Bxc1 {[%emt 0:00:01]} b4 {[%emt 0:00:09]} 30. Bb5 {[%emt 0:01:04]} Nf3+ {[%emt 0:01:39]} 31. Kg2 {[%emt 0:00:09]} Nd4 {[%emt 0:00:15]} 32. Bc4 {[%emt 0:00:08]} e6 {[%emt 0:02:45]} 33. dxe6 {[%emt 0:01:07]} Nxe6 {[%emt 0:00:28]} 34. f3 {[%emt 0:00:34]} Kf8 {[%emt 0:00:55]} 35. Kf2 {[%emt 0:00:14]} Bc3 {[%emt 0:00:23]} 36. Ke3 {[%emt 0:00:41]} Nc5 {[%emt 0:00:22]} 37. Ke2 {[%emt 0:00:31]} Ke7 {[%emt 0:00:18]} 38. Bf4 {[%emt 0:00:25]} h5 {[%emt 0:00:54]} 39. Bg5+ {[%emt 0:00:28]} f6 {[%emt 0:00:28]} 40. Be3 {[%emt 0:00:00]} Kf8 {[%emt 0:00:00]} 41. Bd5 {[%emt 0:04:43]} Bb2 {[%emt 0:16:40]} 42. Bd2 {[%emt 0:02:31]} Ba3 {[%emt 0:00:05]} 43. Ke3 {[%emt 0:04:17]} Nd7 {[%emt 0:01:37]} 44. f4 {[%emt 0:00:43]} Nb6 {[%emt 0:01:50]} 45. Bc6 {[%emt 0:00:48]} Ke7 {[%emt 0:01:59]} 46. Kd3 {[%emt 0:00:14]} Kd8 {[%emt 0:01:13]} 47. Be3 {[%emt 0:00:38]} Nd7 {[%emt 0:02:56]} 48. Bxd7 {[%emt 0:15:07]} Kxd7 {[%emt 0:00:02]} 49. f5 {[%emt 0:00:43]} gxf5 {[%emt 0:00:54]} 50. exf5 {[%emt 0:00:04]} Kc6 {[%emt 0:03:58]} 51. Bd4 {[%emt 0:00:20]} Kd5 {[%emt 0:00:18]} 52. Bxf6 {[%emt 0:00:04]} Bc1 {[%emt 0:00:20]} 53. h3 {[%emt 0:03:23]} 1-0

[Event "World Team-ch Women 2019"]
[Site "Astana"]
[Date "2019.03.07"]
[Round "3.19"]
[White "Padmini, Rout"]
[Black "Sargsyan, Anna M."]
[Result "1-0"]
[ECO "B11"]
[WhiteElo "2332"]
[BlackElo "2340"]
[Annotator "NA"]
[PlyCount "105"]
[EventDate "2019.02.05"]
[EventType "team-tourn"]
[EventCountry "KAZ"]
[SourceTitle "playchess.com"]
[Source "ChessBase"]
[SourceQuality "1"]
[WhiteTeam "India"]
[BlackTeam "Armenia"]
[WhiteTeamCountry "IND"]
[BlackTeamCountry "ARM"]
[TimeControl "40/5400+30:1800+30"]

1. e4 {[%emt 0:00:00]} c6 {[%emt 0:00:00]} 2. Nc3 {[%emt 0:00:00]} d5 {[%emt 0:00:00]} 3. Nf3 {[%emt 0:00:00]} Bg4 {[%emt 0:00:00]} 4. Be2 {[%emt 0:00:10]} Nf6 {[%emt 0:00:46]} 5. h3 {[%emt 0:00:18]} Bxf3 {[%emt 0:00:05]} 6. Bxf3 {[%emt 0:00:08]} d4 {[%emt 0:00:05]} 7. Ne2 {[%emt 0:00:36]} e5 {[%emt 0:00:06]} 8. d3 {[%emt 0:00:58]} h6 {[%emt 0:02:43]} 9. O-O {[%emt 0:02:52]} Qd7 {[%emt 0:06:02]} 10. Ng3 {[%emt 0:03:34]} g6 {[%emt 0:06:18]} 11. Be2 {[%emt 0:12:20]} Bd6 {[%emt 0:05:48]} 12. f4 {[%emt 0:00:21]} c5 $14 {[%emt 0:01:54]} 13. fxe5 {[%emt 0:00:56]} Bxe5 {[%emt 0:00:18]} 14. Bf4 {[%emt 0:00:08]} Qd6 {[%emt 0:01:12]} 15. Bxe5 {[%emt 0:08:23]} Qxe5 {[%emt 0:00:20]} 16. Rf3 Nc6 {[%emt 0:06:52]} 17. Qd2 {[%emt 0:07:22]} Nd7 {[%emt 0:03:23]} 18. Raf1 {[%emt 0:00:15]} Qd6 {[%emt 0:02:49]} 19. Bd1 {[%emt 0:11:31]} Nce5 {[%emt 0:01:20]} 20. R3f2 {[%emt 0:00:11]} O-O-O {[%emt 0:09:13]} 21. Ne2 {[%emt 0:00:09]} Kb8 {[%emt 0:12:44]} 22. a3 {[%emt 0:02:44]} c4 {[%emt 0:08:43]} 23. Nc1 {[%emt 0:07:19]} h5 {[%emt 0:03:24]} 24. Be2 {[%emt 0:00:53]} Nc5 {[%emt 0:05:15]} 25. Qf4 {[%emt 0:01:39]} Ne6 {[%emt 0:03:44]} 26. Qd2 {[%emt 0:01:24]} Qc6 {[%emt 0:11:26]} 27. dxc4 {[%emt 0:03:16]} Qxe4 {[%emt 0:00:19]} 28. Bd3 {[%emt 0:01:09]} Qh4 {[%emt 0:02:19]} 29. Qe1 {[%emt 0:05:19]} Qg5 {[%emt 0:02:59]} 30. Re2 {[%emt 0:01:50]} Nxd3 {[%emt 0:02:20]} 31. Nxd3 {[%emt 0:00:10]} Rhf8 {[%emt 0:00:52]} 32. Re5 {[%emt 0:04:36]} Qe7 {[%emt 0:01:54]} 33. Nf4 {[%emt 0:02:10]} Rfe8 {[%emt 0:00:16]} 34. Nd5 {[%emt 0:00:29]} Qf8 {[%emt 0:00:31]} 35. Qg3 {[%emt 0:04:22]} h4 {[%emt 0:00:24]} 36. Qxh4 {[%emt 0:05:58]} Qd6 {[%emt 0:00:51]} 37. Rfe1 {[%emt 0:06:26]} a6 {[%emt 0:00:28]} 38. b4 {[%emt 0:00:40]} Qc6 {[%emt 0:00:32]} 39. Qf2 {[%emt 0:05:46]} Rf8 {[%emt 0:00:18]} 40. Nf6 {[%emt 0:00:00]} Nc7 {[%emt 0:00:00]} 41. Nh7 {[%emt 0:14:35]} Rh8 {[%emt 0:01:22]} 42. Rc5 {[%emt 0:02:07]} Qd7 {[%emt 0:02:37]} 43. Nf6 {[%emt 0:00:05]} Qd6 {[%emt 0:00:19]} 44. Ne4 {[%emt 0:00:18]} Qd7 {[%emt 0:00:55]} 45. Re5 {[%emt 0:00:20]} Qa4 {[%emt 0:02:58]} 46. Re7 {[%emt 0:03:41]} f5 {[%emt 0:09:50]} 47. Nc5 {[%emt 0:01:29]} Qc6 {[%emt 0:00:31]} 48. Qg3 {[%emt 0:01:03]} Rd6 {[%emt 0:01:19]} 49. Nd3 {[%emt 0:04:18]} Rc8 {[%emt 0:03:54]} 50. a4 {[%emt 0:00:11]} Rdd8 {[%emt 0:01:21]} 51. b5 {[%emt 0:00:26]} axb5 {[%emt 0:01:42]} 52. axb5 {[%emt 0:00:50]} Qd6 {[%emt 0:00:09]} 53. Qg5 {[%emt 0:00:54]} 1-0

[Event "World Team-ch Women 2019"]
[Site "Astana"]
[Date "2019.03.07"]
[Round "3.20"]
[White "Gevorgyan, Maria"]
[Black "Kulkarni Bhakti"]
[Result "0-1"]
[ECO "B10"]
[WhiteElo "2264"]
[BlackElo "2322"]
[Annotator "NA"]
[PlyCount "80"]
[EventDate "2019.02.05"]
[EventType "team-tourn"]
[EventCountry "KAZ"]
[SourceTitle "playchess.com"]
[Source "ChessBase"]
[SourceQuality "1"]
[WhiteTeam "Armenia"]
[BlackTeam "India"]
[WhiteTeamCountry "ARM"]
[BlackTeamCountry "IND"]
[TimeControl "40/5400+30:1800+30"]

1. e4 {[%emt 0:00:00]} c6 {[%emt 0:00:00]} 2. Nc3 {[%emt 0:00:00]} d5 {[%emt 0:00:05]} 3. Nf3 {[%emt 0:00:00]} dxe4 {[%emt 0:00:11]} 4. Nxe4 {[%emt 0:00:06]} Nf6 {[%emt 0:00:09]} 5. Nxf6+ {[%emt 0:01:38]} exf6 {[%emt 0:00:04]} 6. d4 {[%emt 0:00:50]} Bd6 {[%emt 0:00:37]} 7. Bd3 {[%emt 0:06:42]} O-O {[%emt 0:04:48]} 8. Be3 {[%emt 0:09:00]} Qc7 {[%emt 0:05:15]} 9. Qd2 {[%emt 0:03:18]} Be6 {[%emt 0:04:14]} 10. c3 {[%emt 0:05:34]} Nd7 {[%emt 0:01:26]} 11. Qc2 {[%emt 0:02:36]} h6 {[%emt 0:01:52]} 12. h3 c5 {[%emt 0:03:36]} 13. O-O-O {[%emt 0:15:08]} Nb6 {[%emt 0:05:38]} 14. Kb1 {[%emt 0:03:21]} c4 {[%emt 0:06:31]} 15. Be4 {[%emt 0:00:48]} Nd5 {[%emt 0:01:04]} 16. Nh4 {[%emt 0:12:17]} Rfe8 {[%emt 0:05:12]} 17. Qe2 {[%emt 0:09:08]} Bf8 {[%emt 0:12:14]} 18. Qf3 {[%emt 0:02:55]} Rad8 {[%emt 0:00:21]} 19. Bd2 {[%emt 0:03:12]} b5 {[%emt 0:04:46]} 20. Nf5 {[%emt 0:03:36]} b4 {[%emt 0:03:14]} 21. cxb4 {[%emt 0:01:02]} Nxb4 {[%emt 0:12:20]} 22. Nxg7 {[%emt 0:00:55]} c3 {[%emt 0:02:05]} 23. Nxe6 {[%emt 0:17:09]} c2+ {[%emt 0:00:26]} 24. Bxc2 {[%emt 0:00:53]} Qxc2+ {[%emt 0:00:03]} 25. Ka1 {[%emt 0:00:02]} Rxe6 {[%emt 0:01:22]} 26. Bxb4 {[%emt 0:00:19]} Bxb4 {[%emt 0:00:38]} 27. d5 {[%emt 0:00:03]} Rb6 {[%emt 0:00:57]} 28. Rc1 {[%emt 0:00:25]} Qg6 {[%emt 0:03:12]} 29. Rc4 {[%emt 0:00:20]} f5 {[%emt 0:00:50]} 30. Kb1 {[%emt 0:03:09]} f4+ {[%emt 0:02:20]} 31. Ka1 {[%emt 0:00:23]} Bd6 {[%emt 0:00:08]} 32. Qe2 {[%emt 0:00:39]} Rdb8 {[%emt 0:00:19]} 33. Rc2 {[%emt 0:00:05]} Qg7 {[%emt 0:00:33]} 34. Kb1 {[%emt 0:00:10]} Be5 {[%emt 0:01:01]} 35. b3 {[%emt 0:00:02]} a5 {[%emt 0:00:30]} 36. Qe4 {[%emt 0:00:09]} Rb4 {[%emt 0:00:38]} 37. Qf5 {[%emt 0:00:25]} a4 {[%emt 0:01:41]} 38. Rhc1 {[%emt 0:00:03]} Qg6 {[%emt 0:00:52]} 39. Qxe5 {[%emt 0:00:53]} axb3 {[%emt 0:00:10]} 40. axb3 {[%emt 0:00:00]} Rxb3+ {[%emt 0:00:00]} 0-1

[Event "World Team-ch Women 2019"]
[Site "Astana"]
[Date "2019.03.08"]
[Round "4.6"]
[White "Huang, Qian"]
[Black "Mkrtchian, Lilit"]
[Result "1/2-1/2"]
[ECO "A40"]
[WhiteElo "2441"]
[BlackElo "2390"]
[Annotator "NA"]
[PlyCount "85"]
[EventDate "2019.02.05"]
[EventType "team-tourn"]
[EventCountry "KAZ"]
[SourceTitle "playchess.com"]
[Source "ChessBase"]
[SourceQuality "1"]
[WhiteTeam "China"]
[BlackTeam "Armenia"]
[WhiteTeamCountry "CHN"]
[BlackTeamCountry "ARM"]
[TimeControl "40/5400+30:1800+30"]

1. d4 {[%emt 0:00:00]} e6 {[%emt 0:00:02]} 2. c4 {[%emt 0:03:01]} b6 {[%emt 0:00:31]} 3. Nf3 {[%emt 0:00:57]} Bb7 {[%emt 0:00:53]} 4. g3 {[%emt 0:02:40]} Bb4+ {[%emt 0:00:48]} 5. Nc3 {[%emt 0:02:41]} Bxc3+ {[%emt 0:02:18]} 6. bxc3 {[%emt 0:00:09]} Nf6 {[%emt 0:00:12]} 7. Bg2 {[%emt 0:04:47]} O-O {[%emt 0:00:07]} 8. O-O {[%emt 0:03:04]} Re8 {[%emt 0:01:36]} 9. Re1 {[%emt 0:02:38]} d6 {[%emt 0:08:12]} 10. Nd2 {[%emt 0:29:01]} Bxg2 {[%emt 0:01:10]} 11. Kxg2 {[%emt 0:00:05]} e5 {[%emt 0:14:13]} 12. e4 {[%emt 0:02:18]} Nc6 {[%emt 0:06:31]} 13. Bb2 {[%emt 0:02:33]} Na5 {[%emt 0:02:36]} 14. Qa4 {[%emt 0:06:41]} Qd7 {[%emt 0:08:23]} 15. Qxd7 {[%emt 0:03:43]} Nxd7 {[%emt 0:00:13]} 16. f3 {[%emt 0:00:15]} c5 {[%emt 0:01:42]} 17. d5 {[%emt 0:05:18]} Rf8 {[%emt 0:15:24]} 18. Kf2 {[%emt 0:07:23]} g6 {[%emt 0:06:50]} 19. Ke2 {[%emt 0:02:16]} f5 {[%emt 0:00:14]} 20. Rf1 {[%emt 0:00:04]} Rf7 {[%emt 0:00:14]} 21. Rf2 {[%emt 0:03:55]} Raf8 {[%emt 0:00:25]} 22. Raf1 {[%emt 0:00:10]} Nf6 {[%emt 0:06:12]} 23. Bc1 {[%emt 0:01:13]} Kg7 {[%emt 0:02:15]} 24. Kd3 {[%emt 0:02:53]} Nd7 {[%emt 0:06:22]} 25. Ke2 {[%emt 0:01:15]} h5 {[%emt 0:02:36]} 26. h4 {[%emt 0:02:38]} Rb8 {[%emt 0:03:40]} 27. Kd3 {[%emt 0:02:48]} Rbf8 {[%emt 0:00:16]} 28. Ke2 {[%emt 0:00:04]} Rb8 {[%emt 0:00:30]} 29. Kd3 {[%emt 0:00:05]} a6 {[%emt 0:05:37]} 30. a4 {[%emt 0:00:57]} Rbf8 {[%emt 0:00:29]} 31. Ke2 {[%emt 0:00:04]} Nf6 {[%emt 0:01:27]} 32. Kd3 {[%emt 0:00:26]} Nd7 {[%emt 0:02:09]} 33. Ke2 {[%emt 0:00:05]} Rb8 {[%emt 0:01:26]} 34. Kd3 {[%emt 0:00:03]} Rbf8 {[%emt 0:00:04]} 35. Ke2 {[%emt 0:00:04]} Nf6 {[%emt 0:00:30]} 36. Kd3 {[%emt 0:00:07]} fxe4+ {[%emt 0:00:44]} 37. fxe4 {[%emt 0:00:08]} Ng4 {[%emt 0:00:04]} 38. Rxf7+ {[%emt 0:00:06]} Rxf7 {[%emt 0:00:01]} 39. Rxf7+ {[%emt 0:01:08]} Kxf7 {[%emt 0:00:03]} 40. Ke2 {[%emt 0:00:00]} Ke8 {[%emt 0:00:00]} 41. Kd3 {[%emt 0:04:59]} Nf2+ {[%emt 0:09:11]} 42. Ke2 {[%emt 0:00:04]} Ng4 {[%emt 0:00:08]} 43. Kd3 {[%emt 0:00:04]} 1/2-1/2

[Event "World Team-ch Women 2019"]
[Site "Astana"]
[Date "2019.03.08"]
[Round "4.7"]
[White "Sargsyan, Anna M."]
[Black "Lei, Tingjie"]
[Result "1/2-1/2"]
[ECO "D78"]
[WhiteElo "2340"]
[BlackElo "2477"]
[Annotator "RC"]
[PlyCount "85"]
[EventDate "2019.02.05"]
[EventType "team-tourn"]
[EventCountry "KAZ"]
[SourceTitle "playchess.com"]
[Source "ChessBase"]
[SourceQuality "1"]
[WhiteTeam "Armenia"]
[BlackTeam "China"]
[WhiteTeamCountry "ARM"]
[BlackTeamCountry "CHN"]
[TimeControl "40/5400+30:1800+30"]

1. d4 {[%emt 0:00:00]} Nf6 {[%emt 0:00:09]} 2. c4 {[%emt 0:00:00]} g6 {[%emt 0:01:04]} 3. g3 {[%emt 0:00:00]} c6 {[%emt 0:00:34]} 4. Bg2 {[%emt 0:00:07]} d5 {[%emt 0:00:05]} 5. Nf3 {[%emt 0:00:09]} Bg7 {[%emt 0:00:11]} 6. O-O {[%emt 0:00:08]} O-O {[%emt 0:02:24]} 7. Qb3 {[%emt 0:00:06]} Qb6 {[%emt 0:00:50]} 8. Nc3 {[%emt 0:00:08]} Rd8 {[%emt 0:00:04]} 9. Rd1 {[%emt 0:01:04]} Bf5 {[%emt 0:03:29]} 10. Ne1 {[%emt 0:00:06]} dxc4 {[%emt 0:01:50]} 11. Qxc4 {[%emt 0:00:13]} Na6 {[%emt 0:00:02]} 12. e4 {[%emt 0:11:52]} Be6 {[%emt 0:00:04]} 13. Qa4 {[%emt 0:07:20]} Bg4 {[%emt 0:00:03]} 14. Bf3 {[%emt 0:07:38]} Rac8 {[%emt 0:18:50]} 15. Kg2 {[%emt 0:21:57]} c5 {[%emt 0:16:01]} 16. d5 {[%emt 0:04:01]} c4 {[%emt 0:01:38]} 17. Qc2 {[%emt 0:11:37]} Bxf3+ {[%emt 0:02:01]} 18. Nxf3 {[%emt 0:00:14]} Nb4 {[%emt 0:00:23]} 19. Qe2 {[%emt 0:00:21]} Nd3 {[%emt 0:00:25]} 20. Ne1 {[%emt 0:04:09]} Nxc1 {[%emt 0:03:02]} 21. Raxc1 {[%emt 0:00:07]} e6 {[%emt 0:00:23]} 22. Nf3 {[%emt 0:03:32]} exd5 {[%emt 0:04:09]} 23. e5 {[%emt 0:04:39]} Re8 {[%emt 0:01:34]} 24. Nxd5 {[%emt 0:03:04]} Nxd5 {[%emt 0:00:39]} 25. Rxd5 {[%emt 0:00:01]} Qc6 {[%emt 0:06:13]} 26. Rcd1 {[%emt 0:00:22]} c3 {[%emt 0:00:55]} 27. bxc3 {[%emt 0:00:30]} Qxc3 {[%emt 0:00:08]} 28. Qb5 {[%emt 0:03:41]} Qc6 {[%emt 0:03:56]} 29. Qxc6 {[%emt 0:00:28]} bxc6 {[%emt 0:01:01]} 30. Rc5 {[%emt 0:07:42]} Bf8 {[%emt 0:05:19]} 31. Rc4 {[%emt 0:00:08]} c5 {[%emt 0:02:40]} 32. Rd7 {[%emt 0:02:10]} a6 {[%emt 0:01:30]} 33. Ra7 {[%emt 0:02:49]} Re6 {[%emt 0:00:20]} 34. h4 {[%emt 0:01:23]} h6 {[%emt 0:00:44]} 35. g4 {[%emt 0:02:05]} Rb8 {[%emt 0:02:00]} 36. Ra4 {[%emt 0:00:21]} Rb4 {[%emt 0:07:51]} 37. R7xa6 {[%emt 0:01:45]} Rxa6 {[%emt 0:00:35]} 38. Rxa6 {[%emt 0:00:05]} Rxg4+ {[%emt 0:00:02]} 39. Kf1 {[%emt 0:00:41]} Re4 {[%emt 0:01:28]} 40. Ra8 {[%emt 0:00:00]} Kg7 {[%emt 0:00:00]} 41. Ra7 {[%emt 0:05:05]} Kg8 {[%emt 0:22:14]} 42. Ra8 {[%emt 0:00:17]} Kg7 {[%emt 0:00:45]} 43. Ra7 {[%emt 0:00:12]} 1/2-1/2